bitfinex/quotes_BTCUSD_20241021
["timestamp","ask_amount","ask_price","bid_price","bid_amount"]
[1729549775454,4.37274014,67830.0,67829.0,0.164737]
[1729549775657,4.37274014,67830.0,67829.0,0.169737]
[1729549788624,4.55054014,67830.0,67829.0,0.159737]
[1729549788849,4.59480254,67830.0,67829.0,0.159737]
[1729549789077,4.55054014,67830.0,67829.0,0.159737]
[1729549789758,4.37274014,67830.0,67829.0,0.169737]
[1729549803133,4.37274014,67830.0,67829.0,0.022308]
[1729549803786,4.37274014,67830.0,67829.0,0.169737]
[1729549803913,4.37274014,67830.0,67829.0,0.022308]
[1729549804546,0.05169181,67829.0,67828.0,0.0049102]
[1729549804754,0.39383808,67829.0,67828.0,0.0049102]
[1729549804998,0.39792597,67829.0,67828.0,0.0049102]
[1729549806204,0.39892597,67829.0,67828.0,0.0289102]
[1729549808419,0.39892597,67829.0,67828.0,0.0297372]
[1729549810589,0.49312597,67829.0,67828.0,0.0297372]
[1729549812294,0.64208512,67829.0,67828.0,0.024827]
[1729549812471,0.64208512,67829.0,67828.0,0.0297372]
[1729549814727,0.49312597,67829.0,67828.0,0.0297372]
[1729549815772,1.05512782,67829.0,67828.0,0.024827]
[1729549815980,1.04954214,67829.0,67828.0,0.024827]
[1729549816192,1.00221694,67829.0,67828.0,0.024827]
[1729549816638,1.00121694,67829.0,67828.0,0.012827]
[1729549816854,1.00121694,67829.0,67828.0,0.014827]
[1729549817057,0.85170327,67829.0,67828.0,0.002827]
[1729549817233,1.00066242,67829.0,67828.0,0.000827]
[1729549818052,1.16394408,67829.0,67828.0,0.000827]
[1729549818269,0.89785591,67829.0,67828.0,0.000827]
[1729549818592,0.99616565,67829.0,67828.0,0.002827]
[1729549819053,0.99616565,67829.0,67828.0,0.000827]
[1729549819605,0.83288399,67829.0,67828.0,0.000827]
[1729549822884,0.37492597,67829.0,67828.0,0.0057372]
[1729549824113,0.37492597,67829.0,67828.0,0.000827]
[1729549824316,0.39792597,67829.0,67828.0,0.004827]
[1729549824517,0.39792597,67829.0,67828.0,0.0057372]
[1729549824730,0.39792597,67829.0,67828.0,0.0097372]
[1729549824929,0.39792597,67829.0,67828.0,0.0137372]
[1729549825079,0.54535497,67829.0,67828.0,0.0137372]
[1729549825288,0.39792597,67829.0,67828.0,0.0137372]
[1729549826576,0.39792597,67829.0,67828.0,0.008827]
[1729549826809,0.39792597,67829.0,67828.0,0.0137372]
[1729549827040,0.43097108,67829.0,67828.0,0.0137372]
[1729549828147,0.75730008,67829.0,67828.0,0.008827]
[1729549829550,0.72425497,67829.0,67828.0,0.008827]
[1729549831218,0.54618197,67829.0,67828.0,0.008827]
[1729549831489,0.59038427,67829.0,67828.0,0.008827]
[1729549831766,0.44295527,67829.0,67828.0,0.0137372]
[1729549831995,0.39875297,67829.0,67828.0,0.0137372]
[1729549832962,0.39875297,67829.0,67828.0,0.1611682]
[1729549833199,0.39875297,67829.0,67828.0,0.0137372]
[1729549834594,0.51088199,67829.0,67828.0,0.008827]
[1729549836895,0.51088199,67829.0,67828.0,0.0137372]
[1729549837906,0.65984114,67829.0,67828.0,0.0137372]
[1729549840637,0.51088199,67829.0,67828.0,0.0137372]
[1729549841238,0.55508429,67829.0,67828.0,0.0137372]
[1729549845347,0.55508429,67829.0,67828.0,0.008827]
[1729549845566,0.55508429,67829.0,67828.0,0.0137372]
[1729549847538,0.51088199,67829.0,67828.0,0.0137372]
[1729549848177,0.61184502,67829.0,67828.0,0.0137372]
[1729549851053,0.39875297,67829.0,67828.0,0.0137372]
[1729549853021,0.44299207,67829.0,67828.0,0.008827]
[1729549853258,0.44299207,67829.0,67828.0,0.0137372]
[1729549853463,0.39875297,67829.0,67828.0,0.0137372]
[1729549861170,0.39875297,67829.0,67828.0,0.42225637]
[1729549861374,0.39875297,67829.0,67828.0,0.51927736]
[1729549861798,0.39875297,67829.0,67828.0,0.40714834]
[1729549862017,0.39875297,67829.0,67828.0,0.40314834]
[1729549862248,0.39875297,67829.0,67828.0,0.39914834]
[1729549862455,0.39875297,67829.0,67828.0,0.40414834]
[1729549863096,0.39975297,67829.0,67828.0,0.41814834]
[1729549863363,0.39975297,67829.0,67828.0,0.53027736]
[1729549863569,0.39975297,67829.0,67828.0,0.41814834]
[1729549864204,0.39975297,67829.0,67828.0,0.41314834]
[1729549864658,0.40075297,67829.0,67828.0,0.42714834]
[1729549865747,0.40075297,67829.0,67828.0,0.33324834]
[1729549873259,0.40075297,67829.0,67828.0,0.18428919]
[1729549873713,0.40075297,67829.0,67828.0,0.1811682]
[1729549874062,0.40075297,67829.0,67828.0,0.18424612]
[1729549875148,0.7177968,67829.0,67828.0,0.03681512]
[1729549875357,0.57945297,67829.0,67828.0,0.0337372]
[1729549875594,0.57945297,67829.0,67828.0,0.028827]
[1729549876315,0.57845297,67829.0,67828.0,0.014827]
[1729549877176,0.57745297,67829.0,67828.0,0.005827]
[1729549877405,0.57745297,67829.0,67828.0,0.011827]
[1729549877624,0.77666243,67829.0,67828.0,0.011827]
[1729549877836,0.62923343,67829.0,67828.0,0.011827]
[1729549878042,0.62923343,67829.0,67828.0,0.005827]
[1729549878266,0.62923343,67829.0,67828.0,0.011827]
[1729549883140,0.57745297,67829.0,67828.0,0.011827]
[1729549889086,0.79115991,67829.0,67828.0,0.011827]
[1729549889291,0.72488197,67829.0,67828.0,0.011827]
[1729549889520,0.9017989,67829.0,67828.0,0.011827]
[1729549889882,0.88798541,67829.0,67828.0,0.011827]
[1729549890080,0.90178896,67829.0,67828.0,0.006827]
[1729549890281,1.05574811,67829.0,67828.0,0.006827]
[1729549890485,1.05574811,67829.0,67828.0,0.000827]
[1729549890827,1.05574811,67829.0,67828.0,0.003827]
[1729549891261,1.05573541,67829.0,67828.0,0.005827]
[1729549891642,1.20469456,67829.0,67828.0,0.000827]
[1729549891849,1.21469456,67829.0,67828.0,0.000827]
[1729549892056,1.21569456,67829.0,67828.0,0.000827]
[1729549892280,1.21469456,67829.0,67828.0,0.000827]
[1729549892736,1.21569456,67829.0,67828.0,0.000827]
[1729549892959,1.21469456,67829.0,67828.0,0.000827]
[1729549893834,1.21869456,67829.0,67828.0,0.000827]
[1729549894922,1.22369456,67829.0,67828.0,0.000827]
[1729549895205,1.22368089,67829.0,67828.0,0.000827]
[1729549897549,2.47838089,67829.0,67828.0,0.000827]
[1729549898662,2.58869865,67829.0,67828.0,0.000827]
[1729549899099,2.47838089,67829.0,67828.0,0.000827]
[1729549899333,2.47838089,67829.0,67818.0,0.001666]
[1729549899334,0.162451,67819.0,67818.0,0.001666]
[1729549899577,0.72476819,67819.0,67818.0,0.001666]
[1729549899792,0.73855266,67819.0,67818.0,0.00437835]
[1729549900024,0.73855266,67819.0,67818.0,0.001666]
[1729549900248,0.83914148,67819.0,67818.0,0.001666]
[1729549900656,0.84514148,67819.0,67818.0,0.001666]
[1729549900782,0.83514148,67819.0,67818.0,0.001666]
[1729549900986,0.84514148,67819.0,67818.0,0.001666]
[1729549901193,0.88924467,67819.0,67818.0,0.001666]
[1729549901391,0.84514148,67819.0,67818.0,0.001666]
[1729549901612,0.88924417,67819.0,67818.0,0.001666]
[1729549902071,0.88324417,67819.0,67818.0,0.001666]
[1729549902278,0.8744597,67819.0,67818.0,0.001666]
[1729549902496,0.8882436,67819.0,67818.0,0.001666]
[1729549902661,0.83635701,67819.0,67818.0,0.002666]
[1729549902836,0.011,67819.0,67818.0,0.002666]
[1729549903973,0.011,67819.0,67818.0,0.00542076]
[1729549904191,0.028,67819.0,67818.0,0.001666]
[1729549904404,0.023,67819.0,67818.0,0.001666]
[1729549904570,0.024,67819.0,67818.0,0.007666]
[1729549904777,0.024,67819.0,67818.0,0.001666]
[1729549905106,0.171451,67819.0,67818.0,0.001666]
[1729549905314,0.172451,67819.0,67818.0,0.006766]
[1729549905932,0.172451,67819.0,67818.0,0.006666]
[1729549906099,0.177451,67819.0,67818.0,0.006666]
[1729549906300,0.177451,67819.0,67818.0,0.005866]
[1729549906859,0.172451,67819.0,67818.0,0.005666]
[1729549907280,0.173451,67819.0,67818.0,0.010866]
[1729549907710,0.173451,67819.0,67818.0,0.010666]
[1729549908047,0.173451,67819.0,67818.0,0.009866]
[1729549908743,0.173451,67819.0,67818.0,0.009666]
[1729549909114,0.173451,67819.0,67818.0,0.008866]
[1729549909631,0.173451,67819.0,67818.0,0.008666]
[1729549912170,0.173451,67819.0,67818.0,0.009493]
[1729549912374,0.29167976,67819.0,67818.0,0.009493]
[1729549914519,0.3054849,67819.0,67818.0,0.009493]
[1729549916923,0.29167976,67819.0,67818.0,0.009493]
[1729549917138,0.30549102,67819.0,67818.0,0.009493]
[1729549918678,0.34959371,67819.0,67818.0,0.009493]
[1729549918871,0.30549102,67819.0,67818.0,0.009493]
[1729549919649,0.3716759,67819.0,67818.0,0.009493]
[1729549920572,0.46846445,67819.0,67818.0,0.009493]
[1729549920812,0.46847965,67819.0,67818.0,0.009493]
[1729549921248,0.4684797,67819.0,67818.0,0.009493]
[1729549921402,0.46847967,67819.0,67818.0,0.009493]
[1729549921844,0.51452665,67819.0,67818.0,0.009493]
[1729549922609,0.60277315,67819.0,67818.0,0.009493]
[1729549923268,0.6027772,67819.0,67818.0,0.009493]
[1729549924122,0.60289924,67819.0,67818.0,0.009493]
[1729549925613,0.51457591,67819.0,67818.0,0.009493]
[1729549926878,0.62498008,67819.0,67818.0,0.009493]
[1729549927094,0.62498154,67819.0,67818.0,0.009493]
[1729549927549,0.79188154,67819.0,67818.0,0.009493]
[1729549927993,0.68147737,67819.0,67818.0,0.009493]
[1729549928209,0.76983762,67819.0,67818.0,0.009493]
[1729549928644,0.68147737,67819.0,67818.0,0.009493]
[1729549929081,0.79203795,67819.0,67818.0,0.009493]
[1729549929322,0.68157062,67819.0,67818.0,0.009493]
[1729549929534,0.39176071,67819.0,67818.0,0.003493]
[1729549929754,0.30026071,67819.0,67818.0,0.003493]
[1729549929960,0.29826271,67819.0,67818.0,0.000827]
[1729549930175,0.23298395,67819.0,67818.0,0.000827]
[1729549930390,0.23198395,67819.0,67818.0,0.000827]
[1729549930672,1.20578988,67819.0,67818.0,0.000827]
[1729549930891,1.08554605,67819.0,67818.0,0.000827]
[1729549931113,0.46929302,67813.0,67812.0,0.001668]
[1729549931333,0.86859262,67813.0,67812.0,0.001668]
[1729549931778,0.87859262,67813.0,67812.0,0.001668]
[1729549932425,0.87959262,67813.0,67812.0,0.007668]
[1729549932858,0.357879,67806.0,67799.0,0.001668]
[1729549933088,1.15886275,67806.0,67799.0,0.001668]
[1729549933316,0.58215004,67800.0,67799.0,0.001668]
[1729549933532,0.95409885,67800.0,67799.0,0.001668]
[1729549933747,0.95427023,67800.0,67799.0,0.001668]
[1729549934183,0.95425093,67800.0,67799.0,0.001668]
[1729549934447,1.10321008,67800.0,67799.0,0.001668]
[1729549936174,2.36791008,67800.0,67799.0,0.002668]
[1729549936388,2.311039,67800.0,67799.0,0.002668]
[1729549936603,2.323039,67800.0,67799.0,0.003668]
[1729549938620,2.32266371,67800.0,67799.0,0.003668]
[1729549939639,2.38688501,67800.0,67799.0,0.003668]
[1729549939896,2.27661673,67800.0,67799.0,0.003668]
[1729549940103,2.38688415,67800.0,67799.0,0.003668]
[1729549940526,2.38688415,67800.0,67771.0,0.009336]
[1729549940527,0.170533,67781.0,67771.0,0.009336]
[1729549940835,0.170533,67781.0,67776.0,0.22124383]
[1729549940836,0.33449215,67781.0,67776.0,0.22124383]
[1729549941001,0.33449215,67781.0,67780.0,0.00870895]
[1729549941002,0.58550484,67781.0,67780.0,0.00870895]
[1729549941243,0.5110707,67781.0,67780.0,0.006]
[1729549941659,0.5992191,67781.0,67780.0,0.006]
[1729549941876,0.66145621,67781.0,67780.0,0.007]
[1729549942124,0.57330781,67781.0,67780.0,0.007]
[1729549942324,0.67749276,67781.0,67780.0,0.006]
[1729549942536,0.6617196,67781.0,67780.0,0.006]
[1729549942748,0.6617196,67781.0,67780.0,0.007]
[1729549942749,0.64762089,67781.0,67780.0,0.007]
[1729549942983,0.64562089,67781.0,67780.0,0.007]
[1729549943197,0.82292089,67781.0,67780.0,0.007]
[1729549943446,0.82269609,67781.0,67780.0,0.007]
[1729549943667,0.57902926,67781.0,67780.0,0.007]
[1729549944768,0.62303144,67781.0,67780.0,0.007]
[1729549944988,1.8777296,67781.0,67780.0,0.007]
[1729549945636,1.83372926,67781.0,67780.0,0.007]
[1729549946123,0.34293396,67775.0,67774.0,0.11914383]
[1729549946329,0.49189311,67775.0,67774.0,0.11914383]
[1729549947378,0.49289311,67775.0,67774.0,0.11914383]
[1729549948942,0.49789311,67775.0,67774.0,0.11914383]
[1729549949147,0.49689311,67775.0,67774.0,0.11914383]
[1729549949330,0.64585226,67775.0,67774.0,0.11914383]
[1729549949584,0.65285226,67775.0,67774.0,0.11914383]
[1729549949842,0.64585226,67775.0,67774.0,0.11914383]
[1729549950051,0.65285226,67775.0,67774.0,0.11914383]
[1729549950710,0.50389311,67775.0,67774.0,0.11914383]
[1729549950930,0.49389311,67775.0,67774.0,0.11914383]
[1729549951151,0.32650615,67775.0,67774.0,0.11914383]
[1729549951381,0.33250615,67775.0,67774.0,0.11914383]
[1729549952045,0.183547,67775.0,67774.0,0.11914383]
[1729549952928,0.176547,67775.0,67774.0,0.11914383]
[1729549953375,0.183547,67775.0,67774.0,0.11914383]
[1729549953615,0.170547,67775.0,67774.0,0.11914383]
[1729549953819,0.176547,67775.0,67774.0,0.11914383]
[1729549954469,0.170547,67775.0,67774.0,0.11914383]
[1729549954693,0.170547,67775.0,67774.0,0.12014383]
[1729549956429,0.22124383,67779.0,67774.0,0.12014383]
[1729549956667,0.295081,67778.0,67774.0,0.12014383]
[1729549956880,0.147544,67776.0,67775.0,0.00322361]
[1729549957397,0.170544,67776.0,67775.0,0.00322361]
[1729549959322,0.171544,67776.0,67775.0,0.00322361]
[1729549959624,0.170544,67776.0,67775.0,0.00322361]
[1729549960071,0.170544,67776.0,67775.0,0.00622361]
[1729549960878,0.023,67776.0,67775.0,0.00622361]
[1729549961094,0.147544,67776.0,67775.0,0.00622361]
[1729549961512,0.170544,67776.0,67775.0,0.00622361]
[1729549962120,0.023,67779.0,67775.0,0.00622361]
[1729549962321,0.170544,67776.0,67775.0,0.003]
[1729549962523,0.170544,67776.0,67775.0,0.009]
[1729549962749,0.170544,67776.0,67775.0,0.01220748]
[1729549962961,0.170544,67776.0,67775.0,0.00920748]
[1729549964205,0.170544,67776.0,67775.0,0.01220748]
[1729549964539,0.147544,67777.0,67775.0,0.01220748]
[1729549964756,0.023,67778.0,67777.0,0.0948]
[1729549964953,0.001654,67780.0,67777.0,0.0948]
[1729549964954,0.023,67779.0,67777.0,0.0948]
[1729549965200,0.023,67779.0,67777.0,0.09799037]
[1729549965629,0.023,67779.0,67778.0,0.0049102]
[1729549965826,0.022,67779.0,67778.0,0.0049102]
[1729549966059,0.022,67779.0,67778.0,0.00810057]
[1729549966785,0.0211,67779.0,67778.0,0.00810057]
[1729549966992,0.021,67779.0,67778.0,0.00810057]
[1729549967434,0.023,67779.0,67778.0,0.01110057]
[1729549967668,0.0222,67779.0,67778.0,0.01110057]
[1729549967897,0.169638,67779.0,67778.0,0.01110057]
[1729549968350,0.169538,67779.0,67778.0,0.01110057]
[1729549968569,0.168838,67779.0,67778.0,0.01110057]
[1729549968811,0.168738,67779.0,67778.0,0.00619037]
[1729549969043,0.168738,67779.0,67778.0,0.003]
[1729549969265,0.168538,67779.0,67778.0,0.003]
[1729549969467,0.168338,67779.0,67778.0,0.003]
[1729549969696,0.0182,67779.0,67775.0,0.006]
[1729549969877,0.147544,67776.0,67775.0,0.006]
[1729549970025,0.147444,67776.0,67775.0,0.006]
[1729549970253,0.147344,67776.0,67775.0,0.006]
[1729549971425,0.148344,67776.0,67775.0,0.012]
[1729549972074,0.172344,67776.0,67775.0,0.014]
[1729549972293,0.171344,67776.0,67775.0,0.012]
[1729549972527,0.170344,67776.0,67775.0,0.008]
[1729549973576,0.295085,67777.0,67775.0,0.008]
[1729549973803,0.170544,67776.0,67775.0,0.011]
[1729549974434,0.170544,67776.0,67775.0,0.008]
[1729549975297,0.170544,67776.0,67775.0,0.006]
[1729549975919,0.170544,67776.0,67775.0,0.009]
[1729549977698,0.023,67776.0,67775.0,0.009]
[1729549978340,0.023,67776.0,67775.0,0.011]
[1729549978940,0.023,67776.0,67775.0,0.008]
[1729549979155,0.023,67778.0,67775.0,0.008]
[1729549979417,0.023,67778.0,67777.0,0.1524522]
[1729549979625,0.023,67778.0,67777.0,0.2473522]
[1729549980276,0.023,67778.0,67777.0,0.25053942]
[1729549980732,0.023,67778.0,67777.0,0.10299742]
[1729549980951,0.023,67778.0,67777.0,0.25153942]
[1729549982266,0.023,67778.0,67777.0,0.42901035]
[1729549982740,0.023,67778.0,67777.0,0.33123942]
[1729549983781,0.024,67778.0,67777.0,0.33123942]
[1729549984206,0.023,67778.0,67777.0,0.33206642]
[1729549985107,0.024,67778.0,67777.0,0.18652442]
[1729549985592,0.025,67778.0,67777.0,0.19352442]
[1729549985786,0.024,67778.0,67777.0,0.19152442]
[1729549985969,0.023,67778.0,67777.0,0.18452442]
[1729549986165,0.023,67778.0,67777.0,0.33406642]
[1729549986414,0.023,67778.0,67777.0,0.33506642]
[1729549986937,0.023,67778.0,67777.0,0.33206642]
[1729549987139,0.024,67778.0,67777.0,0.19152442]
[1729549987783,0.025,67778.0,67777.0,0.19352442]
[1729549989734,0.025,67778.0,67777.0,0.09862442]
[1729549990173,0.025,67778.0,67777.0,0.01792442]
[1729549995776,0.13735949,67778.0,67777.0,0.01792442]
[1729549995985,0.025,67778.0,67777.0,0.01792442]
[1729549996397,0.026654,67778.0,67777.0,0.01792442]
[1729549997253,0.13901349,67778.0,67777.0,0.01792442]
[1729550000539,0.23641349,67778.0,67777.0,0.01301422]
[1729550000807,0.45895349,67778.0,67777.0,0.01301422]
[1729550001022,0.45895349,67778.0,67777.0,0.0147372]
[1729550001023,0.31141349,67778.0,67777.0,0.0147372]
[1729550001449,0.31141349,67778.0,67777.0,0.01793553]
[1729550002293,0.23641349,67778.0,67777.0,0.01793553]
[1729550002510,0.13901349,67778.0,67777.0,0.0147372]
[1729550002723,0.13901349,67778.0,67777.0,0.01793675]
[1729550003593,0.18321867,67778.0,67777.0,0.01793675]
[1729550005092,0.18322493,67778.0,67777.0,0.01793675]
[1729550007008,0.18322493,67778.0,67777.0,0.0147372]
[1729550007218,0.18322493,67778.0,67777.0,0.01793675]
[1729550008580,0.13901349,67778.0,67777.0,0.01793675]
[1729550009064,0.13901349,67778.0,67777.0,0.27720731]
[1729550009065,0.026654,67778.0,67777.0,0.27720731]
[1729550009690,0.026654,67778.0,67777.0,0.24797875]
[1729550011601,0.003654,67778.0,67777.0,0.3969379]
[1729550012451,0.002654,67778.0,67777.0,0.3899379]
[1729550012664,0.001654,67778.0,67777.0,0.3879379]
[1729550012874,0.001654,67778.0,67777.0,0.50919107]
[1729550013102,0.002654,67778.0,67777.0,0.51019107]
[1729550014198,0.026654,67778.0,67777.0,0.16547875]
[1729550014691,0.025654,67778.0,67777.0,0.15747875]
[1729550015144,0.026654,67778.0,67777.0,0.17047875]
[1729550062105,0.026654,67778.0,67777.0,0.3194379]
[1729550062328,0.026654,67778.0,67777.0,0.61129739]
[1729550062562,0.003654,67778.0,67777.0,0.71629739]
[1729550062777,0.003654,67778.0,67777.0,0.72829739]
[1729550063431,0.003654,67778.0,67777.0,0.83892044]
[1729550063636,0.002654,67778.0,67777.0,0.82592044]
[1729550063852,0.001654,67778.0,67777.0,0.82492044]
[1729550064087,0.002654,67778.0,67777.0,0.83792044]
[1729550064523,0.002654,67778.0,67777.0,0.81575558]
[1729550065136,0.002654,67778.0,67777.0,0.81675558]
[1729550065360,0.002654,67778.0,67777.0,0.8297539]
[1729550065361,0.003654,67778.0,67777.0,0.8297539]
[1729550065584,0.003654,67778.0,67777.0,0.74129739]
[1729550073506,0.003654,67778.0,67777.0,0.74720439]
[1729550076526,0.003654,67778.0,67777.0,0.48720439]
[1729550076729,0.003654,67778.0,67777.0,0.49020524]
[1729550076940,0.003654,67778.0,67777.0,0.63774724]
[1729550077417,0.003654,67778.0,67777.0,0.34588775]
[1729550077631,0.003654,67778.0,67777.0,0.33388775]
[1729550078060,0.003654,67778.0,67777.0,0.34388775]
[1729550078500,0.001654,67778.0,67777.0,0.30688775]
[1729550078934,0.002654,67778.0,67777.0,0.32088775]
[1729550079148,0.001654,67778.0,67777.0,0.30688775]
[1729550079573,0.002654,67778.0,67777.0,0.32088775]
[1729550079754,0.003654,67778.0,67777.0,0.33488775]
[1729550080229,0.002654,67778.0,67777.0,0.32088775]
[1729550080663,0.003654,67778.0,67777.0,0.33488775]
[1729550081332,0.026654,67778.0,67777.0,0.17854285]
[1729550081551,0.103154,67778.0,67777.0,0.03100085]
[1729550081998,0.103154,67778.0,67777.0,0.17854285]
[1729550082411,0.103154,67778.0,67777.0,0.27854285]
[1729550091015,0.103154,67778.0,67777.0,0.34364285]
[1729550096521,0.026654,67778.0,67777.0,0.34364285]
[1729550099990,0.026654,67778.0,67777.0,0.34446985]
[1729550102557,0.31721349,67778.0,67777.0,0.09692785]
[1729550102772,0.31721349,67778.0,67777.0,0.24446985]
[1729550103202,0.204854,67778.0,67777.0,0.24446985]
[1729550108417,0.39919915,67778.0,67777.0,0.09692785]
[1729550108623,0.66051779,67778.0,67777.0,0.09692785]
[1729550108834,0.70466015,67778.0,67777.0,0.093927]
[1729550109037,0.5481583,67778.0,67777.0,0.093927]
[1729550109468,0.59028238,67778.0,67777.0,0.065927]
[1729550109686,0.5501583,67778.0,67777.0,0.065927]
[1729550109887,0.5521583,67778.0,67777.0,0.065927]
[1729550110107,0.5481583,67778.0,67777.0,0.065927]
[1729550110317,0.5511583,67778.0,67777.0,0.065927]
[1729550110519,0.59527678,67778.0,67777.0,0.065927]
[1729550110743,0.5511583,67778.0,67777.0,0.065927]
[1729550110951,0.59527929,67778.0,67777.0,0.065927]
[1729550111377,0.59527248,67778.0,67777.0,0.065927]
[1729550111810,0.6663892,67778.0,67777.0,0.065927]
[1729550112367,0.60017566,67778.0,67777.0,0.065927]
[1729550113131,0.598272,67778.0,67777.0,0.065927]
[1729550113839,0.358394,67778.0,67777.0,0.065927]
[1729550114057,0.47075349,67778.0,67777.0,0.065927]
[1729550114717,0.46775349,67778.0,67777.0,0.065927]
[1729550114925,0.46775349,67778.0,67777.0,0.06949024]
[1729550115134,0.46775349,67778.0,67777.0,0.066927]
[1729550115562,0.46275349,67778.0,67777.0,0.066927]
[1729550116405,0.350394,67778.0,67777.0,0.066927]
[1729550116612,0.104354,67778.0,67777.0,0.066927]
[1729550116828,0.001654,67778.0,67777.0,0.066927]
[1729550117236,0.001654,67778.0,67777.0,0.06948637]
[1729550118112,0.024654,67778.0,67777.0,0.06948637]
[1729550120059,0.172194,67778.0,67777.0,0.06948637]
[1729550120911,0.172194,67778.0,67777.0,0.066927]
[1729550121134,0.172194,67778.0,67777.0,0.06948637]
[1729550124834,0.024654,67778.0,67777.0,0.06948637]
[1729550125066,0.172194,67778.0,67777.0,0.06948637]
[1729550125691,0.172194,67778.0,67777.0,0.066927]
[1729550127923,0.21638307,67778.0,67777.0,0.066927]
[1729550128346,0.21638626,67778.0,67777.0,0.066927]
[1729550129444,0.31063315,67778.0,67777.0,0.066927]
[1729550130488,0.21638626,67778.0,67777.0,0.066927]
[1729550132986,0.172194,67778.0,67777.0,0.066927]
[1729550133342,0.2384824,67778.0,67777.0,0.066927]
[1729550136195,0.024654,67778.0,67777.0,0.066927]
[1729550136398,0.001654,67778.0,67777.0,0.214469]
[1729550136637,0.001654,67778.0,67777.0,0.07165406]
[1729550136852,0.001654,67778.0,67777.0,0.21919606]
[1729550137285,0.001654,67778.0,67777.0,0.21819606]
[1729550137717,0.024654,67778.0,67777.0,0.21919606]
[1729550137933,0.024654,67778.0,67777.0,0.07165406]
[1729550138144,0.024654,67778.0,67777.0,0.07065406]
[1729550138566,0.025654,67778.0,67777.0,0.08265406]
[1729550139010,0.026654,67778.0,67777.0,0.09665406]
[1729550139238,0.026654,67778.0,67777.0,0.24419606]
[1729550139434,0.025654,67778.0,67777.0,0.23019606]
[1729550139639,0.026654,67778.0,67777.0,0.09465406]
[1729550160187,0.026654,67778.0,67777.0,0.24219606]
[1729550160386,0.026654,67778.0,67777.0,0.09465406]
[1729550162072,0.026654,67778.0,67777.0,0.24219606]
[1729550162805,0.026654,67778.0,67777.0,0.09465406]
[1729550166141,0.026654,67778.0,67777.0,0.24219606]
[1729550166345,0.026654,67778.0,67777.0,0.09465406]
[1729550172357,0.31331349,67778.0,67777.0,0.09465406]
[1729550172546,0.49251564,67778.0,67777.0,0.09465406]
[1729550172754,0.49251564,67778.0,67777.0,0.089927]
[1729550172755,0.85575926,67778.0,67777.0,0.089927]
[1729550173383,0.85475926,67778.0,67777.0,0.077927]
[1729550173600,0.85475926,67778.0,67777.0,0.076927]
[1729550173812,0.97711875,67778.0,67777.0,0.04456993]
[1729550174014,1.11076052,67778.0,67777.0,0.04456993]
[1729550174460,0.015,67775.0,67774.0,0.11997083]
[1729550174464,0.015,67775.0,67771.0,0.001668]
[1729550174465,0.185553,67772.0,67771.0,0.001668]
[1729550174692,0.71599907,67772.0,67771.0,0.001668]
[1729550174913,0.94071805,67772.0,67771.0,0.001668]
[1729550175146,0.89471036,67772.0,67771.0,0.001668]
[1729550175587,1.00706149,67772.0,67771.0,0.001668]
[1729550175793,1.15602064,67772.0,67771.0,0.001668]
[1729550176222,1.17102064,67772.0,67771.0,0.003668]
[1729550176440,1.17078143,67772.0,67771.0,0.003668]
[1729550176667,1.06043043,67772.0,67771.0,0.003668]
[1729550177559,1.14664241,67772.0,67771.0,0.003668]
[1729550177982,1.05843043,67772.0,67771.0,0.003668]
[1729550178251,1.14664178,67772.0,67771.0,0.003668]
[1729550178461,1.1466392,67772.0,67771.0,0.003668]
[1729550178667,1.05824515,67772.0,67771.0,0.003668]
[1729550179102,1.14645392,67772.0,67771.0,0.003668]
[1729550179723,1.05824515,67772.0,67771.0,0.003668]
[1729550180148,1.14639718,67772.0,67771.0,0.003668]
[1729550180354,1.14839718,67772.0,67771.0,0.003668]
[1729550180554,1.05824515,67772.0,67771.0,0.003668]
[1729550181834,0.89549028,67772.0,67771.0,0.003668]
[1729550182726,0.96154673,67772.0,67771.0,0.003668]
[1729550182935,0.9635466,67772.0,67771.0,0.003668]
[1729550183147,0.89749028,67772.0,67771.0,0.003668]
[1729550183585,0.96352981,67772.0,67771.0,0.003668]
[1729550184397,0.33912949,67764.0,67761.0,0.000835]
[1729550184621,0.36212949,67764.0,67761.0,0.000835]
[1729550185026,0.46182949,67764.0,67761.0,0.000835]
[1729550188559,0.46582949,67764.0,67761.0,0.000835]
[1729550188848,0.46182949,67764.0,67761.0,0.000835]
[1729550189004,0.49349164,67764.0,67761.0,0.000835]
[1729550189221,0.49649164,67764.0,67761.0,0.000835]
[1729550189629,0.49749164,67764.0,67763.0,0.0145966]
[1729550190068,0.50049164,67764.0,67763.0,0.0145966]
[1729550193334,0.46882949,67764.0,67763.0,0.0145966]
[1729550202430,0.17757,67764.0,67763.0,0.0145966]
[1729550202636,0.28992949,67764.0,67763.0,0.0145966]
[1729550203258,0.28692949,67764.0,67763.0,0.0145966]
[1729550203464,0.28492949,67764.0,67763.0,0.0145966]
[1729550203802,0.28692949,67764.0,67763.0,0.0145966]
[1729550206431,0.43588864,67764.0,67763.0,0.0145966]
[1729550207355,0.59311837,67764.0,67763.0,0.0145966]
[1729550209522,0.59311834,67764.0,67763.0,0.0145966]
[1729550213180,0.59311787,67764.0,67763.0,0.0145966]
[1729550213519,0.62329869,67764.0,67763.0,0.0145966]
[1729550213722,0.63711697,67764.0,67763.0,0.0145966]
[1729550214599,0.65911628,67764.0,67763.0,0.0145966]
[1729550215767,0.84394583,67764.0,67763.0,0.0145966]
[1729550216672,0.86594514,67764.0,67763.0,0.0145966]
[1729550217593,0.75594859,67764.0,67763.0,0.0145966]
[1729550220142,0.8886203,67764.0,67763.0,0.0145966]
[1729550220616,0.75594859,67764.0,67763.0,0.0145966]
[1729550220839,0.75595018,67764.0,67763.0,0.0145966]
[1729550221771,0.75635,67764.0,67763.0,0.0145966]
[1729550222449,0.8890121,67764.0,67763.0,0.0145966]
[1729550223348,0.88901014,67764.0,67763.0,0.0145966]
[1729550223566,0.87519027,67764.0,67763.0,0.0145966]
[1729550223794,0.88900979,67764.0,67763.0,0.0145966]
[1729550226124,0.88900517,67764.0,67763.0,0.0145966]
[1729550226805,0.87518565,67764.0,67763.0,0.0145966]
[1729550227070,0.75635012,67764.0,67763.0,0.0145966]
[1729550227519,0.88901544,67764.0,67763.0,0.0145966]